bitfinex-derivatives/quotes_ETHF0:USTF0_20250828
["timestamp","ask_amount","ask_price","bid_price","bid_amount"]
[1756406962601,0.3748,4483.6,4483.5,0.8747]
[1756406962995,0.9053,4483.6,4483.5,0.8747]
[1756406964097,0.3748,4483.6,4483.5,0.8747]
[1756406964398,0.3748,4483.6,4483.3,0.229]
[1756406964399,0.40143,4483.5,4483.3,0.229]
[1756406964602,0.9053,4483.4,4483.3,1.50515]
[1756406964897,0.5305,4483.9,4483.4,0.5322]
[1756406965102,4.1131,4483.7,4483.6,0.8747]
[1756406967000,4.1131,4483.7,4483.3,0.229]
[1756406967203,1.30674,4483.4,4483.3,0.5715]
[1756406968304,3.2078,4483.7,4483.0,0.8747]
[1756406968305,0.77627,4483.1,4483.0,0.8747]
[1756406968605,0.9053,4483.1,4483.0,1.1027]
[1756406969403,0.3748,4483.1,4483.0,1.1027]
[1756406970104,0.5305,4483.4,4483.3,0.3425]
[1756406970304,1.30675,4483.4,4483.3,0.8747]
[1756406970707,3.2078,4483.7,4483.6,0.3425]
[1756406970903,3.2078,4483.7,4483.6,1.50413]
[1756406971802,4.51448,4484.2,4484.1,0.8747]
[1756406972098,4.51448,4484.2,4484.1,1.1027]
[1756406972704,4.51448,4484.2,4484.1,0.5705]
[1756406972904,4.51448,4484.2,4484.1,1.1027]
[1756406974510,4.51448,4484.2,4484.1,0.228]
[1756406975504,4.1131,4484.2,4484.1,0.5705]
[1756406975704,4.1131,4484.2,4484.1,1.1027]
[1756406975906,3.5826,4484.2,4484.1,1.1027]
[1756406976303,4.1199,4484.2,4484.1,1.1027]
[1756406978316,4.52127,4484.2,4484.1,1.1027]
[1756406979211,4.52127,4484.2,4484.1,0.228]
[1756406980410,1.29701,4483.8,4483.7,0.4985]
[1756406980610,1.29701,4483.8,4483.7,0.7265]
[1756406980810,0.8956,4483.8,4483.7,1.12792]
[1756406981016,0.8956,4483.8,4483.7,1.48252]
[1756406981314,1.29701,4483.8,4483.7,1.0811]
[1756406981914,1.29701,4483.8,4483.7,0.5826]
[1756406982113,3.2078,4484.2,4484.0,0.3546]
[1756406982412,0.8956,4484.1,4484.0,0.3546]
[1756406982615,0.4014,4483.9,4483.8,0.8531]
[1756406982815,1.297,4483.9,4483.8,0.8531]
[1756406983410,1.297,4483.9,4483.8,0.3546]
[1756406984012,1.297,4483.9,4483.8,0.8531]
[1756406984714,1.297,4483.9,4483.7,0.228]
[1756406984715,0.5373,4483.8,4482.2,0.3546]
[1756406985012,0.5373,4483.8,4481.7,1.97939571]
[1756406985013,3.2078,4482.4,4482.3,0.40154]
[1756406985213,3.2078,4482.4,4482.3,1.39264]
[1756406985520,4.1034,4483.3,4483.2,0.8531]
[1756406985709,4.1034,4483.3,4483.2,1.0821]
[1756406985910,4.13398113,4483.3,4483.2,1.0821]
[1756406986216,4.13398113,4483.3,4483.2,0.229]
[1756406989918,4.13398113,4483.3,4483.2,1.0821]
[1756406991418,4.13398113,4483.3,4483.2,0.5836]
[1756406991618,4.13398113,4483.3,4483.2,0.229]
[1756406991819,0.8956,4482.9,4482.8,0.4015]
[1756406992023,0.3583,4482.9,4482.8,0.3546]
[1756406992216,0.3583,4482.9,4482.2,2.98325571]
[1756406992217,0.40152,4482.6,4482.5,0.8531]
[1756406992420,0.3583,4482.3,4482.2,0.3546]
[1756406992621,0.3583,4482.3,4482.2,0.8531]
[1756406993018,0.38888113,4482.3,4482.2,0.8531]
[1756406994417,0.92618113,4482.3,4482.2,0.8531]
[1756406994620,0.38888113,4482.3,4482.2,0.8531]
[1756406994819,0.92618113,4482.3,4482.2,0.8531]
[1756406995221,0.92618113,4482.3,4482.0,0.40157]
[1756406995222,1.29717,4482.1,4482.0,0.8531]
[1756406995423,1.29717,4482.1,4482.0,1.0821]
[1756406996028,1.32775113,4482.1,4482.0,1.0821]
[1756406997731,0.92618113,4482.1,4482.0,1.0821]
[1756406998224,0.92618113,4482.1,4482.0,0.229]
[1756406999726,0.92618113,4482.1,4482.0,1.0821]
[1756407000632,0.92618113,4482.1,4482.0,1.48367]
[1756407000633,0.03058113,4482.1,4482.0,1.48367]
[1756407000833,0.38888113,4482.1,4482.0,1.0821]
[1756407001035,0.38888113,4482.1,4482.0,1.48367]
[1756407001224,0.38888113,4482.1,4482.0,1.0821]
[1756407001429,0.38888113,4482.1,4482.0,1.48367]
[1756407001631,0.03058113,4482.1,4482.0,5.70678]
[1756407001832,0.75976,4483.2,4482.3,1.00386]
[1756407002031,1.29706,4483.2,4483.1,0.8531]
[1756407002232,0.8956,4483.2,4483.1,1.0821]
[1756407003126,3.2078,4483.3,4483.2,0.4985]
[1756407003338,4.1034,4483.3,4483.2,0.8531]
[1756407003633,4.1034,4483.3,4483.2,0.3546]
[1756407003835,4.1034,4483.3,4483.2,0.8531]
[1756407004436,0.8956,4483.3,4483.2,0.8531]
[1756407004638,0.40143,4483.6,4483.3,0.4985]
[1756407004834,0.3583,4483.6,4483.5,0.8531]
[1756407005031,0.5487787,4483.6,4483.5,0.8531]
[1756407005941,1.0860787,4483.6,4483.5,0.8531]
[1756407006436,0.8568,4482.9,4482.8,0.8816]
[1756407006740,1.0472787,4482.9,4482.8,1.1106]
[1756407007040,0.1904787,4482.9,4482.8,5.33367]
[1756407007232,0.5136,4483.9,4483.8,0.8816]
[1756407007233,0.8568,4483.9,4483.8,0.8816]
[1756407007440,1.04732928,4483.9,4483.8,0.229]
[1756407007936,0.3432,4483.4,4483.3,0.76735]
[1756407008137,1.04732928,4483.4,4483.3,1.51205]
[1756407008437,1.04738433,4483.4,4483.3,1.51205]
[1756407008942,0.19058433,4483.4,4483.3,1.51205]
[1756407014734,0.53378433,4483.4,4483.3,0.8816]
[1756407014939,1.04738433,4483.4,4482.9,35.3388]
[1756407015139,0.74467,4483.1,4482.9,32.131]
[1756407015443,1.10585422,4483.0,4482.9,32.131]
[1756407015638,1.10585422,4483.0,4482.3,0.3659]
[1756407015639,0.4015,4482.9,4482.3,0.3659]
[1756407015837,0.7447,4482.9,4482.8,1.1106]
[1756407016142,0.93545198,4482.9,4482.8,1.1106]
[1756407016336,1.44905198,4482.9,4482.8,1.1106]
[1756407016538,1.44905198,4482.9,4482.8,0.229]
[1756407016742,0.40156,4482.1,4481.9,0.5157]
[1756407016948,1.25836,4482.1,4482.0,1.1106]
[1756407017241,1.047546,4482.1,4482.0,1.1106]
[1756407017542,1.047546,4482.1,4482.0,0.8816]
[1756407017746,0.40159,4481.8,4481.7,0.3659]
[1756407017939,0.533946,4481.8,4481.7,1.1106]
[1756407018443,1.047546,4481.8,4481.7,1.1106]
[1756407018844,1.04750106,4481.8,4481.7,0.8816]
[1756407019143,1.04750106,4481.8,4481.7,1.1106]
[1756407019738,0.19071012,4481.8,4481.7,1.1106]
[1756407020135,0.19071012,4481.8,4481.7,5.1106]
[1756407020840,0.19071012,4481.8,4481.7,1.1106]
[1756407021040,1.04751012,4481.8,4481.7,1.1106]
[1756407021944,0.53391012,4481.8,4481.7,1.1106]
[1756407022150,0.19071012,4481.8,4481.7,5.1106]
[1756407022444,3.2078,4482.5,4482.4,1.28313]
[1756407022646,3.2078,4482.5,4482.4,1.51213]
[1756407022845,3.2078,4482.5,4482.4,1.1106]
[1756407023149,4.0646,4482.5,4482.4,1.1106]
[1756407023335,3.551,4482.5,4482.4,1.1106]
[1756407023738,3.2078,4482.5,4482.4,1.1106]
[1756407024343,4.0646,4482.5,4482.4,1.1106]
[1756407024649,0.8568,4482.1,4482.0,0.8816]
[1756407024949,0.8568,4482.1,4482.0,1.1106]
[1756407025240,0.8568,4482.1,4482.0,0.229]
[1756407025639,0.8568,4481.7,4481.6,0.8816]
[1756407025845,0.8568,4481.7,4481.6,1.1106]
[1756407026242,1.2584,4481.7,4481.6,1.1106]
[1756407027442,0.3432,4481.7,4481.6,1.1106]
[1756407027845,3.2078,4482.0,4481.9,0.40158]
[1756407028043,3.2078,4482.0,4481.9,1.28318]
[1756407028446,0.40156,4482.1,4481.9,0.76748]
[1756407028646,0.74476,4482.1,4482.0,1.1106]
[1756407028945,0.37378113,4482.1,4482.0,1.1106]
[1756407029144,0.37378113,4482.1,4482.0,0.8816]
[1756407029446,0.88738113,4482.1,4482.0,1.1106]
[1756407030652,1.28894113,4482.1,4482.0,1.1106]
[1756407030856,0.88738113,4482.1,4482.0,1.1106]
[1756407031044,1.28894113,4482.1,4482.0,1.1106]
[1756407031243,0.03058113,4482.1,4482.0,4.71997]
[1756407031649,0.03058113,4482.1,4482.0,1.51217]
[1756407033353,0.03058113,4482.1,4482.0,1.28317]
[1756407033553,0.03058113,4482.1,4482.0,1.51217]
[1756407034346,0.37378113,4482.1,4482.0,1.51217]
[1756407034653,0.56200904,4482.1,4482.0,1.51217]
[1756407035950,0.21880904,4482.1,4482.0,1.51217]
[1756407036349,0.8263,4483.3,4483.2,0.8679]
[1756407036553,1.01147286,4483.3,4483.2,1.0969]
[1756407036754,0.18517286,4483.3,4483.2,1.0969]
[1756407037161,0.18517286,4483.3,4483.2,5.0969]
[1756407037354,0.8263,4484.3,4484.2,0.35]
[1756407037549,0.335,4484.3,4484.2,1.0969]
[1756407037754,3.2078,4485.0,4484.9,0.8679]
[1756407037956,3.5428,4485.0,4484.9,1.0969]
[1756407038150,4.0341,4485.0,4484.9,1.0969]
[1756407038953,0.4913,4485.4,4485.3,0.35]
[1756407039151,0.8263,4485.4,4485.3,1.0969]
[1756407039460,0.8263,4485.4,4485.3,0.229]
[1756407039851,0.335,4484.7,4484.6,0.8679]
[1756407040061,0.8263,4484.7,4484.6,1.0969]
[1756407041961,0.4913,4485.4,4484.9,0.40131]
[1756407042162,0.8263,4485.3,4485.2,0.8679]
[1756407042459,3.2078,4485.5,4485.3,0.5179]
[1756407042660,0.335,4485.3,4485.2,0.229]
[1756407042863,0.8263,4485.3,4485.2,0.229]
[1756407043060,0.335,4485.1,4485.0,0.8679]
[1756407043261,0.8263,4485.1,4485.0,1.0969]
[1756407043658,0.8263,4485.1,4485.0,0.35]
[1756407043865,0.8263,4485.1,4485.0,0.229]
[1756407044059,5.22759,4485.1,4485.0,0.229]
[1756407044363,0.335,4484.6,4484.5,32.133]
[1756407044565,0.8263,4484.6,4484.5,32.362]
[1756407044759,0.8263,4484.6,4484.5,32.8799]
[1756407045462,0.8263,4484.6,4484.5,32.362]
[1756407045765,0.8263,4484.0,4483.9,3.2078]
[1756407046163,4.0341,4484.0,4483.9,0.229]
[1756407046965,0.335,4483.1,4483.0,73.4419]
[1756407047164,0.8263,4483.4,4483.3,0.8679]
[1756407047368,0.8263,4483.4,4483.3,1.0969]
[1756407047564,0.4913,4483.3,4483.0,32.124]
[1756407047768,0.8263,4483.3,4483.2,0.35]
[1756407047969,0.335,4483.3,4483.2,0.35]
[1756407048174,0.335,4483.3,4483.2,0.8679]
[1756407048466,0.4913,4483.7,4483.2,1.0969]
[1756407048668,3.2078,4484.0,4483.8,1.2693]
[1756407048970,3.2078,4484.0,4483.9,1.0969]
[1756407049870,4.0341,4484.0,4483.9,1.0969]
[1756407050671,3.5428,4484.0,4483.9,1.0969]
[1756407050865,2.00598,4486.3,4483.9,1.0969]
[1756407050866,3.6991,4484.6,4484.0,1.00348]
[1756407051071,3.2078,4484.6,4484.5,1.26924]
[1756407051266,3.2078,4484.6,4484.5,1.49824]
[1756407051867,0.8263,4484.9,4484.8,0.35]
[1756407052060,0.8263,4484.9,4484.8,1.0969]
[1756407053266,0.335,4484.9,4484.8,1.0969]
[1756407053468,0.8263,4484.9,4484.8,1.0969]
[1756407054264,0.40132,4484.8,4484.4,0.5179]
[1756407054470,0.8263,4484.5,4484.4,0.8679]
[1756407054778,0.8263,4484.5,4484.4,1.0969]
[1756407055067,0.335,4484.5,4484.3,3.2078]
[1756407055268,0.40135,4484.4,4484.0,0.5179]
[1756407055471,0.40135,4484.4,4484.1,0.229]
[1756407055679,0.8263,4484.2,4483.8,3.2078]
[1756407055872,0.8263,4484.0,4483.9,0.579]
[1756407056270,0.8263,4484.0,4483.9,0.229]
[1756407056574,3.2078,4486.3,4484.0,0.223]
[1756407056775,0.55140918,4486.2,4486.1,3.2078]
[1756407056971,0.4913,4486.6,4486.1,3.4398]
[1756407057169,0.8263,4486.2,4486.1,3.2078]
[1756407057373,0.8263,4486.2,4486.1,3.4398]
[1756407057565,0.8263,4486.2,4485.0,3.2078]
[1756407057566,0.335,4485.6,4485.0,3.2078]
[1756407057773,0.335,4485.2,4485.1,0.233]
[1756407057970,0.8263,4485.2,4485.1,0.233]
[1756407058172,0.8263,4485.5,4485.4,1.26916]
[1756407058372,0.89252,4486.0,4485.4,0.91916]
[1756407058573,0.335,4485.6,4485.5,0.233]
[1756407058770,0.8263,4485.6,4485.5,0.233]
[1756407059272,0.8263,4485.6,4485.5,1.1009]
[1756407060874,0.8263,4485.1,4485.0,3.7257]
[1756407061176,0.8263,4485.1,4485.0,3.4408]
[1756407061575,0.8263,4485.1,4485.0,4.3087]
[1756407061768,1.22753,4485.8,4485.7,0.8679]
[1756407061974,1.22753,4485.8,4485.7,0.233]
[1756407062873,0.8263,4485.8,4485.7,1.1009]
[1756407063080,0.8263,4486.6,4486.5,0.35]
[1756407063275,0.8263,4486.6,4486.5,0.583]
[1756407063476,0.8263,4486.6,4486.5,0.233]
[1756407063776,0.40112,4487.0,4486.6,0.40116]
[1756407063984,4.10021,4487.2,4486.6,0.5179]
[1756407064279,3.2078,4487.2,4486.6,0.5179]
[1756407064581,0.8263,4487.0,4486.9,0.8679]
[1756407064776,0.8263,4487.0,4486.9,0.583]
[1756407065080,0.8263,4487.0,4486.9,0.233]
[1756407065782,0.4913,4487.3,4487.1,0.5179]
[1756407065976,0.8924,4487.3,4487.1,0.517]
[1756407066178,0.8924,4487.3,4487.2,0.8563]
[1756407066179,0.3489,4487.3,4487.2,0.8563]
[1756407066774,3.736,4487.7,4487.2,0.8563]
[1756407066976,3.95776,4487.7,4487.6,0.3393]
[1756407067181,1.27818,4487.5,4487.4,0.517]
[1756407067476,3.2078,4487.7,4487.5,0.40108]
[1756407067773,1.00242,4488.8,4487.4,0.517]
[1756407067774,0.8771,4488.0,4487.4,0.517]
[1756407067972,3.2078,4488.2,4487.9,0.3393]
[1756407068177,3.2078,4488.2,4488.1,1.25732]
[1756407068576,3.2078,4488.2,4488.1,0.8563]
[1756407068782,4.0849,4488.2,4488.1,0.8563]
[1756407069077,4.0849,4488.2,4488.1,0.233]
[1756407069078,4.48591,4488.2,4488.1,0.233]
[1756407070176,4.0849,4488.2,4488.1,0.233]
[1756407071881,4.0849,4488.2,4488.1,1.0893]
[1756407072977,4.0849,4488.2,4488.1,0.5723]
[1756407073175,0.8771,4488.2,4488.1,1.0893]
[1756407075675,3.2078,4488.7,4488.5,0.40098]
[1756407075878,4.0849,4488.7,4488.6,1.0883]
[1756407076278,0.5282,4489.1,4489.0,0.74024]
[1756407076482,0.8771,4489.1,4489.0,0.97224]
[1756407076783,0.8771,4489.1,4489.0,1.48924]
[1756407077679,0.5282,4489.5,4489.1,0.517]
[1756407077983,0.8771,4489.4,4489.3,0.40091]
[1756407078180,0.8771,4489.4,4489.3,0.74021]
[1756407078383,0.8771,4489.4,4489.3,1.25721]
[1756407078581,0.8771,4489.4,4489.3,0.8563]
[1756407078883,0.8771,4489.2,4489.1,0.74023]
[1756407079481,0.40093,4489.1,4488.8,4.12575]
[1756407079782,0.8771,4488.9,4488.8,3.5471]
[1756407079982,0.8771,4488.9,4488.8,4.2961]
[1756407080387,0.74982,4489.3,4489.2,0.3393]
[1756407080680,0.3489,4489.3,4489.2,1.0883]
[1756407080977,0.40091,4489.4,4489.3,0.517]
[1756407081181,1.27801,4489.4,4489.3,0.8563]
[1756407081780,0.6282,4490.2,4489.3,3.2078]
[1756407082078,0.8771,4490.0,4489.9,1.25716]
[1756407082388,0.1,4490.2,4490.1,0.8563]
[1756407083080,0.9771,4490.2,4490.1,0.8563]
[1756407083474,0.9771,4490.2,4490.1,1.0883]
[1756407084177,0.4489,4490.2,4490.1,1.0883]
[1756407084383,0.1,4490.2,4490.1,1.0883]
[1756407084977,0.84974,4490.2,4490.0,3.2078]
[1756407085181,0.8771,4490.1,4490.0,3.2078]
[1756407085478,0.8771,4489.5,4489.4,4.0641]
[1756407085677,0.8771,4489.5,4489.4,4.2961]
[1756407086384,0.5282,4490.0,4489.7,0.517]
[1756407086585,0.8771,4489.9,4489.8,1.0883]
[1756407086784,0.1,4490.2,4489.8,1.48917]
[1756407087085,0.1,4490.2,4490.1,0.8563]
[1756407087776,0.1,4490.2,4490.1,1.0883]
[1756407090379,0.5282,4491.5,4490.6,0.517]
[1756407090573,1.52992,4491.9,4491.0,0.517]
[1756407090777,0.3489,4491.1,4491.0,0.8563]
[1756407090976,0.3489,4491.1,4491.0,1.0883]
[1756407091586,0.8771,4491.1,4491.0,1.0883]
[1756407092883,0.8771,4490.7,4490.6,3.2078]
[1756407093184,0.8771,4490.7,4490.6,3.4398]
[1756407093384,4.8771,4490.7,4490.6,0.232]
[1756407093882,0.8771,4489.8,4489.7,0.517]
[1756407094082,0.8771,4489.8,4489.7,1.0883]
[1756407094483,0.8771,4489.8,4489.6,3.60869]
[1756407094484,0.3489,4489.8,4489.6,3.60869]
[1756407094682,0.8771,4489.7,4489.6,3.2078]
[1756407094881,0.5282,4490.1,4490.0,0.8563]
[1756407095084,0.8771,4490.1,4489.9,0.40086]
[1756407095283,0.8771,4490.1,4489.6,3.2078]
[1756407095284,0.8771,4489.7,4489.6,3.2078]
[1756407095487,0.8771,4489.7,4489.6,0.232]
[1756407095890,0.8771,4489.7,4489.2,32.095]
[1756407095891,1.27802,4489.3,4489.2,32.095]
[1756407096086,1.27802,4489.3,4489.2,32.327]
[1756407097982,1.27802,4489.3,4489.2,32.095]
[1756407098179,1.27802,4489.3,4489.2,32.327]
[1756407098984,1.27802,4489.3,4489.2,32.095]
[1756407099490,1.22168,4488.6,4488.5,3.2078]
[1756407099787,1.22168,4488.6,4488.5,3.4388]
[1756407100879,1.22168,4488.6,4488.5,4.2503]
[1756407101083,0.40092,4489.3,4489.2,0.3312]
[1756407101389,1.27807839,4489.3,4489.2,1.0425]
[1756407101591,1.76067839,4489.3,4489.2,1.0425]
[1756407102086,1.22162,4489.3,4489.2,1.0425]
[1756407102487,1.22162,4489.3,4489.2,0.8115]
[1756407102794,0.4826,4489.0,4488.6,1.21247]
[1756407103091,0.73904,4489.0,4488.9,0.8115]
[1756407103690,0.40094,4489.1,4489.0,1.21244]
[1756407103889,0.40094,4489.1,4489.0,1.44344]
[1756407104090,0.40094,4489.1,4489.0,1.0425]
[1756407104486,1.22164,4489.1,4489.0,0.8115]
[1756407104695,1.22164,4489.1,4489.0,0.5622]
[1756407105094,1.00223,4489.6,4488.6,0.88127]
[1756407105095,1.22167,4488.7,4488.6,0.3312]
[1756407105393,0.8207,4488.6,4488.5,3.539]
[1756407105597,0.8207,4488.6,4488.5,4.2503]
[1756407108892,0.8207,4488.6,4488.5,4.0193]
[1756407109097,0.8207,4488.6,4488.5,3.4388]
[1756407109293,0.8207,4488.6,4488.5,0.231]
[1756407109496,1.22171,4488.2,4488.1,0.4803]
[1756407109798,1.22171,4488.2,4488.1,0.7113]
[1756407110000,1.22171,4488.2,4488.1,1.0425]
[1756407113401,0.40101,4488.2,4488.1,1.0425]
[1756407113599,0.40101,4488.2,4488.1,1.44352]
[1756407113800,0.40101,4488.2,4488.1,1.0425]
[1756407114402,0.73911,4488.2,4488.1,1.0425]
[1756407114701,1.22171,4488.2,4488.1,1.0425]
[1756407114895,1.00245,4488.7,4488.1,1.0425]
[1756407114896,1.00243,4488.7,4488.1,0.7113]
[1756407115096,0.40101,4488.2,4488.1,0.5622]
[1756407115502,0.73911,4488.2,4488.1,0.3312]
[1756407115795,1.22173,4488.0,4487.9,3.2078]
[1756407116001,1.22173,4488.0,4487.9,3.4388]
[1756407116800,1.22173,4488.0,4487.9,0.231]
[1756407118606,1.22173,4488.0,4487.9,1.0425]
[1756407118803,0.40103,4488.0,4487.9,1.0425]
[1756407119903,0.40103,4488.0,4487.9,1.44354]
[1756407120211,0.40101,4488.3,4488.2,0.3312]
[1756407120509,0.40101,4488.3,4488.2,1.0425]
[1756407120706,3.6904,4489.0,4488.2,0.231]
[1756407120909,3.6904,4489.0,4488.7,0.3312]
[1756407120910,0.40096,4488.9,4488.7,0.3312]
[1756407121099,0.40096,4488.9,4488.8,1.0425]
[1756407121805,3.2078,4489.5,4489.4,0.3312]
[1756407122007,3.2078,4489.5,4489.4,1.0425]
[1756407122309,4.4294,4489.5,4489.4,0.231]
[1756407122905,3.2078,4489.5,4489.4,1.0425]
[1756407123805,0.3381,4489.1,4488.8,0.40096]
[1756407124004,1.22165,4489.0,4488.9,1.0425]
[1756407124404,0.40092,4489.3,4489.2,0.8115]
[1756407124611,0.40092,4489.3,4489.2,1.0425]
[1756407124812,0.3381,4488.7,4488.6,0.8115]
[1756407125113,0.40096,4488.9,4488.8,0.8115]
[1756407125303,0.73906,4488.9,4488.8,0.4803]
[1756407125504,0.8207,4488.6,4488.5,3.2078]
[1756407125707,0.40097,4488.7,4488.0,4.0193]
[1756407125708,1.22172,4488.1,4488.0,4.0193]
[1756407125908,1.22172,4488.1,4488.0,4.2503]
[1756407126107,1.22172,4488.1,4488.0,0.8115]
[1756407126304,1.22172,4488.1,4488.0,0.5622]
[1756407126604,0.87166,4487.7,4487.6,32.5888]
[1756407126809,0.40106,4487.7,4487.6,32.8198]
[1756407127006,0.4706,4488.1,4487.6,32.314]
[1756407127208,0.40102,4488.1,4488.0,0.831]
[1756407127408,0.40102,4488.1,4488.0,1.062]
[1756407127608,0.74872,4488.1,4488.0,1.062]
[1756407127804,1.21932,4488.1,4488.0,1.062]
[1756407128007,1.24985547,4488.1,4488.0,1.062]
[1756407128606,3.08518319,4488.1,4488.0,1.062]
[1756407128809,3.08518319,4488.1,4488.0,0.5562]
[1756407129010,1.86586319,4488.1,4488.0,1.062]
[1756407129815,1.86586319,4488.1,4488.0,4.2698]
[1756407130017,1.86586319,4488.1,4488.0,8.2698]
[1756407130216,0.17894365,4488.1,4488.0,8.49261]
[1756407131414,0.17894365,4488.1,4488.0,49.29261]
[1756407132118,0.4009,4489.5,4488.0,48.96741]
[1756407132419,0.8183,4489.3,4489.2,3.2078]
[1756407132619,0.8183,4489.3,4489.2,3.4388]
[1756407132819,0.8183,4489.3,4489.2,3.4553]
[1756407133417,0.8183,4489.3,4489.2,3.2243]
[1756407133617,0.8183,4489.3,4489.2,3.4553]
[1756407134614,0.4706,4490.2,4490.1,0.0165]
[1756407134824,3.2078,4490.8,4490.1,0.2578]
[1756407135134,0.40084,4490.2,4490.1,0.2578]
[1756407135814,1.21914,4490.2,4490.1,0.231]
[1756407137323,0.74858,4489.7,4489.6,0.0268]
[1756407137626,1.21918,4489.7,4489.6,0.2578]
[1756407138725,1.0021,4490.2,4489.3,32.091]
[1756407138726,0.87151,4489.4,4489.3,32.091]
[1756407138928,0.87151,4489.4,4489.3,32.322]
[1756407139319,0.87151,4489.4,4489.3,32.091]
[1756407139523,0.87151,4489.4,4489.3,32.322]
[1756407140624,8.42701,4489.4,4489.3,0.231]
[1756407140826,0.4706,4488.2,4487.7,35.2948]
[1756407141025,0.87165,4487.8,4487.7,35.3051]
[1756407141233,0.87165,4487.8,4487.7,32.3283]
[1756407141434,0.87165,4487.8,4487.7,32.087]
[1756407141627,0.87165,4487.8,4487.7,32.318]
[1756407141931,0.87165,4487.8,4487.7,32.087]
[1756407142128,0.87165,4487.8,4487.7,31.80045]
[1756407142426,1.21935,4487.8,4487.7,0.231]
[1756407142627,0.40113,4486.9,4486.8,0.0268]
[1756407142830,0.40113,4486.9,4486.8,0.2578]
[1756407143132,0.87173,4486.9,4486.8,0.2578]
[1756407143330,1.21943,4486.9,4486.8,0.0165]
[1756407143630,0.87175,4486.7,4486.6,3.2078]
[1756407143830,0.87175,4486.7,4486.6,3.4656]
[1756407146232,1.21945,4486.7,4486.6,0.0268]
[1756407146432,1.21945,4486.7,4486.6,0.2475]
[1756407146633,1.21945,4486.7,4486.6,0.231]
[1756407147926,0.40119,4486.3,4486.2,0.0103]
[1756407148133,0.8183,4486.2,4486.1,32.088]
[1756407148333,0.8183,4486.2,4486.1,32.319]
[1756407149836,4.0261,4486.2,4486.1,31.12685]
[1756407150036,4.0261,4486.2,4486.1,30.57678]
[1756407150726,4.01208,4486.1,4485.2,0.0103]
[1756407150934,1.21957,4485.3,4485.2,0.0268]
[1756407151230,1.21957,4485.3,4485.2,0.2568]
[1756407151828,0.87187,4485.3,4485.2,0.2568]
[1756407153036,1.21957,4485.3,4485.2,0.23]
[1756407153433,0.40129,4485.1,4485.0,3.2078]
[1756407153633,0.87193,4484.7,4484.6,32.098]
[1756407153831,0.87193,4484.7,4484.6,32.328]
[1756407155132,3.2078,4485.2,4484.6,32.328]
[1756407155336,3.60904,4485.7,4485.6,0.0165]
[1756407155532,0.4012,4486.2,4485.8,0.40123]
[1756407155732,0.4012,4486.2,4485.1,3.2078]
[1756407155733,0.8183,4485.7,4485.1,3.2078]
[1756407155940,0.4706,4485.3,4485.2,0.65908]
[1756407156238,0.73554,4485.7,4485.6,0.5365]
[1756407156438,0.73554,4485.7,4485.6,0.7675]
[1756407156840,0.9135,4485.7,4485.6,0.7675]
[1756407157642,0.5792,4485.7,4485.6,0.7675]
[1756407157842,0.98042,4485.9,4485.8,0.3199]
[1756407158141,3.2078,4486.7,4485.8,0.5365]
[1756407158337,3.2078,4486.7,4486.0,0.5365]
[1756407158535,3.2078,4486.7,4485.4,1.00317]
[1756407158536,0.5792,4486.6,4486.1,0.8478]
[1756407158737,3.2078,4487.2,4486.7,0.61775]
[1756407159042,3.2078,4487.2,4487.1,0.5365]
[1756407159043,3.5421,4487.2,4487.1,0.5365]
[1756407159231,4.1213,4487.2,4487.1,0.7675]
[1756407159636,0.5792,4487.6,4487.5,0.40108]
[1756407159932,0.9135,4488.0,4487.9,0.93754]
[1756407160134,0.231,4489.4,4487.9,0.93754]
[1756407160135,0.3343,4489.0,4488.9,0.3199]
[1756407160332,0.9135,4489.3,4488.9,0.231]
[1756407160536,0.9135,4489.0,4488.9,0.40095]
[1756407160841,0.9135,4489.0,4488.9,3.83975]
[1756407161140,0.9135,4489.0,4488.9,1.16845]
[1756407161342,0.3343,4489.8,4489.7,0.40088]
[1756407161543,0.9135,4489.8,4489.7,0.63188]
[1756407161943,0.9135,4489.8,4489.7,1.16838]
[1756407162736,0.9135,4489.8,4489.7,0.95178]
[1756407164537,0.9135,4489.8,4489.7,1.16838]
[1756407165244,0.5792,4490.1,4490.0,0.93735]
[1756407165441,0.9135,4491.0,4490.9,0.40077]
[1756407168042,3.2078,4491.5,4491.4,0.40073]
[1756407168344,3.5421,4492.2,4492.1,0.72057]
[1756407168539,3.5421,4492.2,4492.1,1.53117]
[1756407168736,0.3343,4492.2,4492.1,1.53117]
[1756407169147,0.3343,4492.2,4492.1,0.63167]
[1756407169846,0.3343,4492.2,4492.1,1.53117]
[1756407170252,0.9135,4493.2,4493.1,0.40058]
[1756407170542,0.9135,4493.2,4493.1,1.53108]
[1756407170742,0.9135,4493.7,4493.6,0.40053]
[1756407170950,0.9135,4493.7,4493.6,0.63153]
[1756407171442,0.5792,4494.0,4493.7,0.5796]
[1756407171642,0.5792,4493.9,4493.8,0.40052]
[1756407171850,0.9135,4493.9,4493.8,0.40052]
[1756407172249,0.9135,4493.9,4493.8,1.30002]
[1756407173249,0.3343,4494.5,4494.0,0.5796]
[1756407173451,0.3343,4494.2,4494.1,0.63149]
[1756407173651,0.9135,4494.2,4494.1,0.63149]
[1756407174043,0.9135,4494.2,4494.1,1.53099]
[1756407174245,3.2078,4495.0,4494.4,0.40045]